Workbook

Sheet INGRESO DE DATOS
A8: COTIZACION DE SEGURO MEDICO INTERNACIONAL
A10: 1. INGRESE LOS DATOS DEL PROPUESTO ASEGURADO :
C12: Nombre del Asegurado principal : | D12: NOMBRE COMPLETO
F14: Número de adultos en la póliza : | G14: 2 | I14: Número de hijos en la póliza : | J14: 5
F16: Edad del titular : | G16: 50 | I16: Edad de cónyuge : | J16: 55
A19: 2. INGRESE EL NOMBRE DE LA AGENCIA ASESORA :
C21: Nombre de la Agencia : | D21: AGENCIA
A24: 3. ESCOJA EL PRODUCTO PARA VISUALIZAR LA COTIZACION RESPECTIVA :

Sheet Exclusive
C10: Cotización de Seguro Médico Internacional - Bupa EXCLUSIVE Care
H12: =+'INGRESO DE DATOS'!$D$12 -> NOMBRE COMPLETO
H14: =+'INGRESO DE DATOS'!$D$21 -> AGENCIA
J16: =+'INGRESO DE DATOS'!$G$14 -> 2 | M16: =+'INGRESO DE DATOS'!$G$16 -> 50
F17: FECHA DE COTIZACION :
F18: =NOW() -> 2021-11-04T16:57:39.430 | J18: =+'INGRESO DE DATOS'!$J$14 -> 5 | M18: =+'INGRESO DE DATOS'!$J$16 -> 55
I20: FALSE | K20: COMPLICACIONES DE MATERNIDAD
J22: FALSE
F25: Deducibles | H25: PLAN 1 | I25: PLAN 2 | J25: PLAN 3 | K25: PLAN 4 | L25: PLAN 5 | M25: PLAN 6
F26: Dentro del pais de residencia | H26: n/a | I26: 1000 | J26: 2000 | K26: 5000 | L26: 10000 | M26: 20000
F27: Fuera del pais de residencia | H27: n/a | I27: 2000 | J27: 3000 | K27: 5000 | L27: 10000 | M27: 20000
F30: Tarifas Anuales
F31: Prima de Titular : | H31: n/a | I31: =VLOOKUP($M$16,Tablas!$A$6:$H$29,4,TRUE) -> 33738 | J31: =VLOOKUP($M$16,Tablas!$A$6:$H$29,5,TRUE) -> 23427 | K31: =VLOOKUP($M$16,Tablas!$A$6:$H$29,6,TRUE) -> 16941 | L31: =VLOOKUP($M$16,Tablas!$A$6:$H$29,7,TRUE) -> 13679 | M31: =VLOOKUP($M$16,Tablas!$A$6:$H$29,8,TRUE) -> 10780
F32: Prima de Cónyuge | H32: n/a | I32: =IF($J$16=1,0,(VLOOKUP($M$18,Tablas!$A$6:$H$29,4,TRUE))) -> 35901 | J32: =IF($J$16=1,0,(VLOOKUP($M$18,Tablas!$A$6:$H$29,5,TRUE))) -> 24929 | K32: =IF($J$16=1,0,(VLOOKUP($M$18,Tablas!$A$6:$H$29,6,TRUE))) -> 18026 | L32: =IF($J$16=1,0,(VLOOKUP($M$18,Tablas!$A$6:$H$29,7,TRUE))) -> 14561 | M32: =IF($J$16=1,0,(VLOOKUP($M$18,Tablas!$A$6:$H$29,8,TRUE))) -> 11478
F33: Primas Hijos : | H33: n/a | I33: =IF($J$18=0,0,(VLOOKUP($J$18,Tablas!$A$30:$H$32,4,TRUE))) -> 13494 | J33: =IF($J$18=0,0,(VLOOKUP($J$18,Tablas!$A$30:$H$32,5,TRUE))) -> 9954 | K33: =IF($J$18=0,0,(VLOOKUP($J$18,Tablas!$A$30:$H$32,6,TRUE))) -> 7845 | L33: =IF($J$18=0,0,(VLOOKUP($J$18,Tablas!$A$30:$H$32,7,TRUE))) -> 6549 | M33: =IF($J$18=0,0,(VLOOKUP($J$18,Tablas!$A$30:$H$32,8,TRUE))) -> 5095
F34: Prima Rider Complic. Maternidad | H34: n/a | I34: =+IF($I$20=FALSE,0,Tablas!D$33) -> 0 | J34: =+IF($I$20=FALSE,0,Tablas!E$33) -> 0 | K34: =+IF($I$20=FALSE,0,Tablas!F$33) -> 0 | L34: =+IF($I$20=FALSE,0,Tablas!G$33) -> 0 | M34: =+IF($I$20=FALSE,0,Tablas!H$33) -> 0
F35: TOTAL PRIMA NETA : | H35: n/a | I35: =SUM(I31:I34) -> 83133 | J35: =SUM(J31:J34) -> 58310 | K35: =SUM(K31:K34) -> 42812 | L35: =SUM(L31:L34) -> 34789 | M35: =SUM(M31:M34) -> 27353
F36: Costo Administrativo Anual : | H36: n/a | I36: 75 | J36: 75 | K36: 75 | L36: 75 | M36: 75
F37: GRAN TOTAL : | H37: n/a | I37: =SUM(I35:I36) -> 83208 | J37: =SUM(J35:J36) -> 58385 | K37: =SUM(K35:K36) -> 42887 | L37: =SUM(L35:L36) -> 34864 | M37: =SUM(M35:M36) -> 27428
F39: Tarifas Semestrales
F40: Prima de Titular : | H40: n/a | I40: =VLOOKUP($M$16,Tablas!$A$39:$H$62,4,TRUE) -> 17881.14 | J40: =VLOOKUP($M$16,Tablas!$A$39:$H$62,5,TRUE) -> 12416.31 | K40: =VLOOKUP($M$16,Tablas!$A$39:$H$62,6,TRUE) -> 8978.73 | L40: =VLOOKUP($M$16,Tablas!$A$39:$H$62,7,TRUE) -> 7249.87 | M40: =VLOOKUP($M$16,Tablas!$A$39:$H$62,8,TRUE) -> 5713.4
F41: Prima de Cónyuge | H41: n/a | I41: =IF($J$16=1,0,(VLOOKUP($M$18,Tablas!$A$39:$H$62,4,TRUE))) -> 19027.53 | J41: =IF($J$16=1,0,(VLOOKUP($M$18,Tablas!$A$39:$H$62,5,TRUE))) -> 13212.37 | K41: =IF($J$16=1,0,(VLOOKUP($M$18,Tablas!$A$39:$H$62,6,TRUE))) -> 9553.78 | L41: =IF($J$16=1,0,(VLOOKUP($M$18,Tablas!$A$39:$H$62,7,TRUE))) -> 7717.33 | M41: =IF($J$16=1,0,(VLOOKUP($M$18,Tablas!$A$39:$H$62,8,TRUE))) -> 6083.34
F42: Primas Hijos : | H42: n/a | I42: =IF($J$18=0,0,(VLOOKUP($J$18,Tablas!$A$63:$H$65,4,TRUE))) -> 7151.82 | J42: =IF($J$18=0,0,(VLOOKUP($J$18,Tablas!$A$63:$H$65,5,TRUE))) -> 5275.62 | K42: =IF($J$18=0,0,(VLOOKUP($J$18,Tablas!$A$63:$H$65,6,TRUE))) -> 4157.85 | L42: =IF($J$18=0,0,(VLOOKUP($J$18,Tablas!$A$63:$H$65,7,TRUE))) -> 3470.97 | M42: =IF($J$18=0,0,(VLOOKUP($J$18,Tablas!$A$63:$H$65,8,TRUE))) -> 2700.35
F43: Prima Rider Complic. Maternidad | H43: n/a | I43: =+IF($I$20=FALSE,0,Tablas!D$66) -> 0 | J43: =+IF($I$20=FALSE,0,Tablas!E$66) -> 0 | K43: =+IF($I$20=FALSE,0,Tablas!F$66) -> 0 | L43: =+IF($I$20=FALSE,0,Tablas!G$66) -> 0 | M43: =+IF($I$20=FALSE,0,Tablas!H$66) -> 0
F44: TOTAL PRIMA NETA : | H44: n/a | I44: =SUM(I40:I43) -> 44060.49 | J44: =SUM(J40:J43) -> 30904.3 | K44: =SUM(K40:K43) -> 22690.36 | L44: =SUM(L40:L43) -> 18438.17 | M44: =SUM(M40:M43) -> 14497.09
F45: Costo Administrativo Anual : | H45: n/a | I45: 75 | J45: 75 | K45: 75 | L45: 75 | M45: 75
F46: GRAN TOTAL (1ra Cuota) : | H46: n/a | I46: =SUM(I44:I45) -> 44135.49 | J46: =SUM(J44:J45) -> 30979.3 | K46: =SUM(K44:K45) -> 22765.36 | L46: =SUM(L44:L45) -> 18513.17 | M46: =SUM(M44:M45) -> 14572.09
F47: GRAN TOTAL (2da Cuota) : | H47: n/a | I47: =I44 -> 44060.49 | J47: =J44 -> 30904.3 | K47: 22690.36 | L47: 18438.17 | M47: 14497.09
F48: Tarifas en US $ - Válidas desde 01 enero 2022
F50: Este presupuesto solamente tiene carácter informativo y en ningún momento expresa compromiso legal para suministrarle cobertura de seguro. La emisión de una póliza de seguro Bupa está sujeta a todas las evaluaciones de riesgo por parte de Bupa y a la recepción de todos los pagos de prima requeridos.

Sheet Privilege
C10: Cotización de Seguro Médico Internacional - Bupa PRIVILEGE Care
H12: =+'INGRESO DE DATOS'!$D$12 -> NOMBRE COMPLETO
H14: =+'INGRESO DE DATOS'!$D$21 -> AGENCIA
J16: =+'INGRESO DE DATOS'!$G$14 -> 2 | M16: =+'INGRESO DE DATOS'!$G$16 -> 50
F17: FECHA DE COTIZACION :
F18: =NOW() -> 2021-11-04T16:57:39.430 | J18: =+'INGRESO DE DATOS'!$J$14 -> 5 | M18: =+'INGRESO DE DATOS'!$J$16 -> 55
I20: TRUE | K20: COMPLICACIONES DE MATERNIDAD
J22: FALSE
F25: Deducibles | H25: PLAN 1 | I25: PLAN 2 | J25: PLAN 3 | K25: PLAN 4 | L25: PLAN 5 | M25: PLAN 6
F26: Dentro del pais de residencia | H26: n/a | I26: 1000 | J26: 2000 | K26: 5000 | L26: 10000 | M26: 20000
F27: Fuera del pais de residencia | H27: n/a | I27: 2000 | J27: 3000 | K27: 5000 | L27: 10000 | M27: 20000
F30: Tarifas Anuales
F31: Prima de Titular : | H31: n/a | I31: =VLOOKUP($M$16,Tablas!$A$140:$H$163,4,TRUE) -> 29027 | J31: =VLOOKUP($M$16,Tablas!$A$140:$H$163,5,TRUE) -> 20606 | K31: =VLOOKUP($M$16,Tablas!$A$140:$H$163,6,TRUE) -> 14868 | L31: =VLOOKUP($M$16,Tablas!$A$140:$H$163,7,TRUE) -> 12143 | M31: =VLOOKUP($M$16,Tablas!$A$140:$H$163,8,TRUE) -> 9280
F32: Prima de Cónyuge | H32: n/a | I32: =IF($J$16=1,0,(VLOOKUP($M$18,Tablas!$A$140:$H$163,4,TRUE))) -> 30889 | J32: =IF($J$16=1,0,(VLOOKUP($M$18,Tablas!$A$140:$H$163,5,TRUE))) -> 21928 | K32: =IF($J$16=1,0,(VLOOKUP($M$18,Tablas!$A$140:$H$163,6,TRUE))) -> 15817 | L32: =IF($J$16=1,0,(VLOOKUP($M$18,Tablas!$A$140:$H$163,7,TRUE))) -> 12921 | M32: =IF($J$16=1,0,(VLOOKUP($M$18,Tablas!$A$140:$H$163,8,TRUE))) -> 9880
F33: Primas Hijos : | H33: n/a | I33: =IF($J$18=0,0,(VLOOKUP($J$18,Tablas!$A$164:$H$166,4,TRUE))) -> 11318 | J33: =IF($J$18=0,0,(VLOOKUP($J$18,Tablas!$A$164:$H$166,5,TRUE))) -> 8273 | K33: =IF($J$18=0,0,(VLOOKUP($J$18,Tablas!$A$164:$H$166,6,TRUE))) -> 6198 | L33: =IF($J$18=0,0,(VLOOKUP($J$18,Tablas!$A$164:$H$166,7,TRUE))) -> 5166 | M33: =IF($J$18=0,0,(VLOOKUP($J$18,Tablas!$A$164:$H$166,8,TRUE))) -> 3835
F34: Prima Rider Complic. Maternidad | H34: n/a | I34: =+IF($I$20=FALSE,0,Tablas!D$167) -> 0 | J34: =+IF($I$20=FALSE,0,Tablas!E$167) -> 0 | K34: =+IF($I$20=FALSE,0,Tablas!F$167) -> 225 | L34: =+IF($I$20=FALSE,0,Tablas!G$167) -> 225 | M34: =+IF($I$20=FALSE,0,Tablas!H$167) -> 225
F35: TOTAL PRIMA NETA : | H35: n/a | I35: =SUM(I31:I34) -> 71234 | J35: =SUM(J31:J34) -> 50807 | K35: =SUM(K31:K34) -> 37108 | L35: =SUM(L31:L34) -> 30455 | M35: =SUM(M31:M34) -> 23220
F36: Costo Administrativo Anual : | H36: n/a | I36: 75 | J36: 75 | K36: 75 | L36: 75 | M36: 75
F37: GRAN TOTAL : | H37: n/a | I37: =SUM(I35:I36) -> 71309 | J37: =SUM(J35:J36) -> 50882 | K37: =SUM(K35:K36) -> 37183 | L37: =SUM(L35:L36) -> 30530 | M37: =SUM(M35:M36) -> 23295
F39: Tarifas Semestrales
F40: Prima de Titular : | H40: n/a | I40: =VLOOKUP($M$16,Tablas!$A$173:$H$196,4,TRUE) -> 15384.31 | J40: =VLOOKUP($M$16,Tablas!$A$173:$H$196,5,TRUE) -> 10921.18 | K40: =VLOOKUP($M$16,Tablas!$A$173:$H$196,6,TRUE) -> 7880.04 | L40: =VLOOKUP($M$16,Tablas!$A$173:$H$196,7,TRUE) -> 6435.79 | M40: =VLOOKUP($M$16,Tablas!$A$173:$H$196,8,TRUE) -> 4918.4
F41: Prima de Cónyuge | H41: n/a | I41: =IF($J$16=1,0,(VLOOKUP($M$18,Tablas!$A$173:$H$196,4,TRUE))) -> 16371.17 | J41: =IF($J$16=1,0,(VLOOKUP($M$18,Tablas!$A$173:$H$196,5,TRUE))) -> 11621.84 | K41: =IF($J$16=1,0,(VLOOKUP($M$18,Tablas!$A$173:$H$196,6,TRUE))) -> 8383.01 | L41: =IF($J$16=1,0,(VLOOKUP($M$18,Tablas!$A$173:$H$196,7,TRUE))) -> 6848.13 | M41: =IF($J$16=1,0,(VLOOKUP($M$18,Tablas!$A$173:$H$196,8,TRUE))) -> 5236.4
F42: Primas Hijos : | H42: n/a | I42: =IF($J$18=0,0,(VLOOKUP($J$18,Tablas!$A$197:$H$199,4,TRUE))) -> 5998.54 | J42: =IF($J$18=0,0,(VLOOKUP($J$18,Tablas!$A$197:$H$199,5,TRUE))) -> 4384.69 | K42: =IF($J$18=0,0,(VLOOKUP($J$18,Tablas!$A$197:$H$199,6,TRUE))) -> 3284.94 | L42: =IF($J$18=0,0,(VLOOKUP($J$18,Tablas!$A$197:$H$199,7,TRUE))) -> 2737.98 | M42: =IF($J$18=0,0,(VLOOKUP($J$18,Tablas!$A$197:$H$199,8,TRUE))) -> 2032.55
F43: Prima Rider Complic. Maternidad | H43: n/a | I43: =+IF($I$20=FALSE,0,Tablas!D$200) -> 0 | J43: =+IF($I$20=FALSE,0,Tablas!E$200) -> 0 | K43: =+IF($I$20=FALSE,0,Tablas!F$200) -> 119.25 | L43: =+IF($I$20=FALSE,0,Tablas!G$200) -> 119.25 | M43: =+IF($I$20=FALSE,0,Tablas!H$200) -> 119.25
F44: TOTAL PRIMA NETA : | H44: n/a | I44: =SUM(I40:I43) -> 37754.02 | J44: =SUM(J40:J43) -> 26927.71 | K44: =SUM(K40:K43) -> 19667.24 | L44: =SUM(L40:L43) -> 16141.15 | M44: =SUM(M40:M43) -> 12306.6
F45: Costo Administrativo Anual : | H45: n/a | I45: 75 | J45: 75 | K45: 75 | L45: 75 | M45: 75
F46: GRAN TOTAL (1ra Cuota) : | H46: n/a | I46: =SUM(I44:I45) -> 37829.02 | J46: =SUM(J44:J45) -> 27002.71 | K46: =SUM(K44:K45) -> 19742.24 | L46: =SUM(L44:L45) -> 16216.15 | M46: =SUM(M44:M45) -> 12381.6
F47: GRAN TOTAL (2da Cuota) : | H47: n/a | I47: =I44 -> 37754.02 | J47: =J44 -> 26927.71 | K47: 19667.24 | L47: 16141.15 | M47: 12306.6
F48: Tarifas en US $ - Válidas desde 01 enero 2022
F50: Este presupuesto solamente tiene carácter informativo y en ningún momento expresa compromiso legal para suministrarle cobertura de seguro. La emisión de una póliza de seguro Bupa está sujeta a todas las evaluaciones de riesgo por parte de Bupa y a la recepción de todos los pagos de prima requeridos.

Sheet Advantage (Mundial)
C10: Cotización de Seguro Médico Internacional - Bupa ADVANTAGE Care
H12: =+'INGRESO DE DATOS'!$D$12 -> NOMBRE COMPLETO
H14: =+'INGRESO DE DATOS'!$D$21 -> AGENCIA
J16: =+'INGRESO DE DATOS'!$G$14 -> 2 | M16: =+'INGRESO DE DATOS'!$G$16 -> 50
F17: FECHA DE COTIZACION :
F18: =NOW() -> 2021-11-04T16:57:39.430 | J18: =+'INGRESO DE DATOS'!$J$14 -> 5 | M18: =+'INGRESO DE DATOS'!$J$16 -> 55
I20: TRUE | K20: COMPLICACIONES DE MATERNIDAD
I22: TRUE | K22: TRASPLANTE DE ORGANOS
F25: Deducibles | H25: PLAN 1 | I25: PLAN 2 | J25: PLAN 3 | K25: PLAN 4 | L25: PLAN 5 | M25: PLAN 6
F26: Dentro del pais de residencia | H26: n/a | I26: 1000 | J26: 2000 | K26: 5000 | L26: 10000 | M26: 20000
F27: Fuera del pais de residencia | H27: n/a | I27: 2000 | J27: 3000 | K27: 5000 | L27: 10000 | M27: 20000
F30: Tarifas Anuales
F31: Prima de Titular : | H31: n/a | I31: =VLOOKUP($M$16,Tablas!$A$274:$H$297,4,TRUE) -> 19101 | J31: =VLOOKUP($M$16,Tablas!$A$274:$H$297,5,TRUE) -> 14999 | K31: =VLOOKUP($M$16,Tablas!$A$274:$H$297,6,TRUE) -> 11179 | L31: =VLOOKUP($M$16,Tablas!$A$274:$H$297,7,TRUE) -> 8341 | M31: =VLOOKUP($M$16,Tablas!$A$274:$H$297,8,TRUE) -> 6329
F32: Prima de Cónyuge | H32: n/a | I32: =IF($J$16=1,0,(VLOOKUP($M$18,Tablas!$A$274:$H$297,4,TRUE))) -> 22575 | J32: =IF($J$16=1,0,(VLOOKUP($M$18,Tablas!$A$274:$H$297,5,TRUE))) -> 17315 | K32: =IF($J$16=1,0,(VLOOKUP($M$18,Tablas!$A$274:$H$297,6,TRUE))) -> 12365 | L32: =IF($J$16=1,0,(VLOOKUP($M$18,Tablas!$A$274:$H$297,7,TRUE))) -> 9665 | M32: =IF($J$16=1,0,(VLOOKUP($M$18,Tablas!$A$274:$H$297,8,TRUE))) -> 7480
F33: Primas Hijos : | H33: n/a | I33: =IF($J$18=0,0,(VLOOKUP($J$18,Tablas!$A$298:$H$300,4,TRUE))) -> 9884 | J33: =IF($J$18=0,0,(VLOOKUP($J$18,Tablas!$A$298:$H$300,5,TRUE))) -> 6786 | K33: =IF($J$18=0,0,(VLOOKUP($J$18,Tablas!$A$298:$H$300,6,TRUE))) -> 5122 | L33: =IF($J$18=0,0,(VLOOKUP($J$18,Tablas!$A$298:$H$300,7,TRUE))) -> 4486 | M33: =IF($J$18=0,0,(VLOOKUP($J$18,Tablas!$A$298:$H$300,8,TRUE))) -> 3153
F34: Prima Rider Complic. Maternidad | H34: n/a | I34: =+IF($I$20=FALSE,0,Tablas!D$301) -> 225 | J34: =+IF($I$20=FALSE,0,Tablas!E$301) -> 225 | K34: =+IF($I$20=FALSE,0,Tablas!F$301) -> 225 | L34: =+IF($I$20=FALSE,0,Tablas!G$301) -> 225 | M34: =+IF($I$20=FALSE,0,Tablas!H$301) -> 225
F35: Prima Rider Trasplante Organos | H35: n/a | I35: =IF($I$22=FALSE,0,Tablas!D$302) -> 300 | J35: =IF($I$22=FALSE,0,Tablas!E$302) -> 300 | K35: =IF($I$22=FALSE,0,Tablas!F$302) -> 300 | L35: =IF($I$22=FALSE,0,Tablas!G$302) -> 300 | M35: =IF($I$22=FALSE,0,Tablas!H$302) -> 300
F36: TOTAL PRIMA NETA : | H36: n/a | I36: =SUM(I31:I35) -> 52085 | J36: 39625 | K36: 29191 | L36: 23017 | M36: 17487
F37: Costo Administrativo Anual : | H37: n/a | I37: 75 | J37: 75 | K37: 75 | L37: 75 | M37: 75
F38: GRAN TOTAL : | H38: n/a | I38: =SUM(I36:I37) -> 52160 | J38: =SUM(J36:J37) -> 39700 | K38: =SUM(K36:K37) -> 29266 | L38: =SUM(L36:L37) -> 23092 | M38: =SUM(M36:M37) -> 17562
F40: Tarifas Semestrales
F41: Prima de Titular : | H41: n/a | I41: =VLOOKUP($M$16,Tablas!$A$307:$H$330,4,TRUE) -> 10123.53 | J41: =VLOOKUP($M$16,Tablas!$A$307:$H$330,5,TRUE) -> 7949.47 | K41: =VLOOKUP($M$16,Tablas!$A$307:$H$330,6,TRUE) -> 5924.87 | L41: =VLOOKUP($M$16,Tablas!$A$307:$H$330,7,TRUE) -> 4420.73 | M41: =VLOOKUP($M$16,Tablas!$A$307:$H$330,8,TRUE) -> 3354.37
F42: Prima de Cónyuge | H42: n/a | I42: =IF($J$16=1,0,(VLOOKUP($M$18,Tablas!$A$307:$H$330,4,TRUE))) -> 11964.75 | J42: =IF($J$16=1,0,(VLOOKUP($M$18,Tablas!$A$307:$H$330,5,TRUE))) -> 9176.95 | K42: =IF($J$16=1,0,(VLOOKUP($M$18,Tablas!$A$307:$H$330,6,TRUE))) -> 6553.45 | L42: =IF($J$16=1,0,(VLOOKUP($M$18,Tablas!$A$307:$H$330,7,TRUE))) -> 5122.45 | M42: =IF($J$16=1,0,(VLOOKUP($M$18,Tablas!$A$307:$H$330,8,TRUE))) -> 3964.4
F43: Primas Hijos : | H43: n/a | I43: =IF($J$18=0,0,(VLOOKUP($J$18,Tablas!$A$331:$H$333,4,TRUE))) -> 5238.52 | J43: =IF($J$18=0,0,(VLOOKUP($J$18,Tablas!$A$331:$H$333,5,TRUE))) -> 3596.58 | K43: =IF($J$18=0,0,(VLOOKUP($J$18,Tablas!$A$331:$H$333,6,TRUE))) -> 2714.66 | L43: =IF($J$18=0,0,(VLOOKUP($J$18,Tablas!$A$331:$H$333,7,TRUE))) -> 2377.58 | M43: =IF($J$18=0,0,(VLOOKUP($J$18,Tablas!$A$331:$H$333,8,TRUE))) -> 1671.09
F44: Prima Rider Complic. Maternidad | H44: n/a | I44: =+IF($I$20=FALSE,0,Tablas!D$334) -> 119.25 | J44: =+IF($I$20=FALSE,0,Tablas!E$334) -> 119.25 | K44: =+IF($I$20=FALSE,0,Tablas!F$334) -> 119.25 | L44: =+IF($I$20=FALSE,0,Tablas!G$334) -> 119.25 | M44: =+IF($I$20=FALSE,0,Tablas!H$334) -> 119.25
F45: Prima Rider Trasplante Organos | H45: n/a | I45: =IF($I$22=FALSE,0,Tablas!D$335) -> 159 | J45: =IF($I$22=FALSE,0,Tablas!E$335) -> 159 | K45: =IF($I$22=FALSE,0,Tablas!F$335) -> 159 | L45: =IF($I$22=FALSE,0,Tablas!G$335) -> 159 | M45: =IF($I$22=FALSE,0,Tablas!H$335) -> 159
F46: TOTAL PRIMA NETA : | H46: n/a | I46: =SUM(I41:I45) -> 27605.05 | J46: 21001.25 | K46: 15471.23 | L46: 12199.01 | M46: 9268.11
F47: Costo Administrativo Anual : | H47: n/a | I47: 75 | J47: 75 | K47: 75 | L47: 75 | M47: 75
F48: GRAN TOTAL (1ra Cuota) : | H48: n/a | I48: =SUM(I46:I47) -> 27680.05 | J48: =SUM(J46:J47) -> 21076.25 | K48: =SUM(K46:K47) -> 15546.23 | L48: =SUM(L46:L47) -> 12274.01 | M48: =SUM(M46:M47) -> 9343.11
F49: GRAN TOTAL (2da Cuota) : | H49: n/a | I49: =I46 -> 27605.05 | J49: =J46 -> 21001.25 | K49: 15471.23 | L49: 12199.01 | M49: 9268.11
F50: Tarifas en US $ - Válidas desde 01 enero 2022
F52: Este presupuesto solamente tiene carácter informativo y en ningún momento expresa compromiso legal para suministrarle cobertura de seguro. La emisión de una póliza de seguro Bupa está sujeta a todas las evaluaciones de riesgo por parte de Bupa y a la recepción de todos los pagos de prima requeridos.

Sheet Advantage (LA) (hidden)
A10: Cotización de Seguro Médico Internacional - Bupa ADVANTAGE Care (cobertura solo Latinoamérica)
A12: Bupa Advantage Care (cobertura solo en Latinoamérica) | H12: =+'INGRESO DE DATOS'!$D$12 -> NOMBRE COMPLETO
A13: Cobertura Máxima anual | C13: US $ 3,500,000
A14: Cobertura Geografica | C14: Limitada a Latinoamérica excluyendo México | H14: =+'INGRESO DE DATOS'!$D$21 -> AGENCIA
A15: Condiciones médicas cubiertas | C15: Todas las condiciones médicas
A16: Redes de proveedores | C16: Red de Proveedores "Bupa Advantage" | J16: =+'INGRESO DE DATOS'!$G$14 -> 2 | M16: =+'INGRESO DE DATOS'!$G$16 -> 50
A17: Opciones fuera de la Red | C17: NO, solo en casos de emergencia | F17: FECHA DE COTIZACION :
A18: Requiere preautorización | C18: SI, 30% de penalización por omitir prenotificación | F18: =NOW() -> 2021-11-04T16:57:39.430 | J18: =+'INGRESO DE DATOS'!$J$14 -> 5 | M18: =+'INGRESO DE DATOS'!$J$16 -> 55
A20: Número máximo de días de hospitalización | C20: Ilimitado | I20: TRUE | K20: COMPLICACIONES DE MATERNIDAD
A21: Habitación y alimentación | C21: 100% dentro de Red Bupa
C22: "UCR" para L.A. en emergencias fuera de Red Bupa | I22: TRUE | K22: TRASPLANTE DE ORGANOS
A23: Cuidados Intensivos | C23: 100% dentro de Red Bupa
C24: "UCR" para L.A. en emergencias fuera de Red Bupa
A25: Cobertura de Maternidad | C25: $5,000 (Excepto planes 4,5, y 6) | F25: Deducibles | H25: PLAN 1 | I25: PLAN 2 | J25: PLAN 3 | K25: PLAN 4 | L25: PLAN 5 | M25: PLAN 6
A26: Cobertura Provisional de Recién Nacido | C26: $30,000 por los primeros 90 días | F26: Dentro del pais de residencia | H26: n/a | I26: 1000 | J26: 2000 | K26: 5000 | L26: 10000 | M26: 20000
A27: Cuidado del Recién Nacido saludable | C27: Ya incluída dentro del beneficio de Maternidad | F27: Fuera del pais de residencia | H27: n/a | I27: 2000 | J27: 3000 | K27: 5000 | L27: 10000 | M27: 20000
A28: Cobertura de Complicaciones de Maternidad | C28: Disponible a través de cobertura opcional adicional
A29: Trasplante de Organos | C29: $1,000,000 de por vida, por diagnóstico
A30: Condiciones congénitas y hereditarias | C30: <18 años $300,000 de por vida; >=18 al 100% | F30: Tarifas Anuales
A31: Coberturas opcionales (Riders) | C31: Complicaciones de Maternidad por $500,000 | F31: Prima de Titular : | H31: n/a | I31: =VLOOKUP($M$16,Tablas!$A$341:$H$364,4,TRUE) -> 19086 | J31: =VLOOKUP($M$16,Tablas!$A$341:$H$364,5,TRUE) -> 14984 | K31: =VLOOKUP($M$16,Tablas!$A$341:$H$364,6,TRUE) -> 11183 | L31: =VLOOKUP($M$16,Tablas!$A$341:$H$364,7,TRUE) -> 8330 | M31: =VLOOKUP($M$16,Tablas!$A$341:$H$364,8,TRUE) -> 6322
C32: Trasplante de órganos por $ 300,000 adicionales | F32: Prima de Cónyuge | H32: n/a | I32: =IF($J$16=1,0,(VLOOKUP($M$18,Tablas!$A$341:$H$364,4,TRUE))) -> 22553 | J32: =IF($J$16=1,0,(VLOOKUP($M$18,Tablas!$A$341:$H$364,5,TRUE))) -> 17299 | K32: =IF($J$16=1,0,(VLOOKUP($M$18,Tablas!$A$341:$H$364,6,TRUE))) -> 12369 | L32: =IF($J$16=1,0,(VLOOKUP($M$18,Tablas!$A$341:$H$364,7,TRUE))) -> 9662 | M32: =IF($J$16=1,0,(VLOOKUP($M$18,Tablas!$A$341:$H$364,8,TRUE))) -> 7476
A33: Acompañamiento de menores hospitalizados | C33: $300 por día | F33: Primas Hijos : | H33: n/a | I33: =IF($J$18=0,0,(VLOOKUP($J$18,Tablas!$A$365:$H$367,4,TRUE))) -> 9890 | J33: =IF($J$18=0,0,(VLOOKUP($J$18,Tablas!$A$365:$H$367,5,TRUE))) -> 6793 | K33: =IF($J$18=0,0,(VLOOKUP($J$18,Tablas!$A$365:$H$367,6,TRUE))) -> 5133 | L33: =IF($J$18=0,0,(VLOOKUP($J$18,Tablas!$A$365:$H$367,7,TRUE))) -> 4479 | M33: =IF($J$18=0,0,(VLOOKUP($J$18,Tablas!$A$365:$H$367,8,TRUE))) -> 3153
A34: Ambulancia aérea | C34: $100,000 por año y ticket aéreo de retorno | F34: Prima Rider Complic. Maternidad | H34: n/a | I34: =+IF($I$20=FALSE,0,Tablas!D$368) -> 0 | J34: =+IF($I$20=FALSE,0,Tablas!E$368) -> 0 | K34: =+IF($I$20=FALSE,0,Tablas!F$368) -> 0 | L34: =+IF($I$20=FALSE,0,Tablas!G$368) -> 0 | M34: =+IF($I$20=FALSE,0,Tablas!H$368) -> 0
A35: Repatriación restos mortales | C35: 1 | F35: Prima Rider Trasplante Organos | H35: n/a | I35: =IF($I$22=FALSE,0,Tablas!D$369) -> 0 | J35: =IF($I$22=FALSE,0,Tablas!E$369) -> 0 | K35: =IF($I$22=FALSE,0,Tablas!F$369) -> 0 | L35: =IF($I$22=FALSE,0,Tablas!G$369) -> 0 | M35: =IF($I$22=FALSE,0,Tablas!H$369) -> 0
A36: Medicamentos por receta | C36: $6,000 por Asegurado, por año póliza | F36: TOTAL PRIMA NETA : | H36: n/a | I36: =SUM(I31:I35) -> 51529 | J36: 39076 | K36: 28685 | L36: 22471 | M36: 16951
A37: Almacenamiento de sangre de cordon umbilical | C37: $500 (Excepto planes 4,5, y 6) | F37: Costo Administrativo Anual : | H37: n/a | I37: 75 | J37: 75 | K37: 75 | L37: 75 | M37: 75
F38: GRAN TOTAL : | H38: n/a | I38: =SUM(I36:I37) -> 51604 | J38: =SUM(J36:J37) -> 39151 | K38: =SUM(K36:K37) -> 28760 | L38: =SUM(L36:L37) -> 22546 | M38: =SUM(M36:M37) -> 17026
A39: Atención médica en el hogar | C39: 100% de usual/acostumbrado y razonable
A40: Rehabilitación | C40: 100% de usual/acostumbrado y razonable | F40: Tarifas Semestrales
A41: Residencia y cuidados paliativos | C41: 100% de usual/acostumbrado y razonable | F41: Prima de Titular : | H41: n/a | I41: =VLOOKUP($M$16,Tablas!$A$374:$H$397,4,TRUE) -> 10115.58 | J41: =VLOOKUP($M$16,Tablas!$A$374:$H$397,5,TRUE) -> 7941.52 | K41: =VLOOKUP($M$16,Tablas!$A$374:$H$397,6,TRUE) -> 5926.99 | L41: =VLOOKUP($M$16,Tablas!$A$374:$H$397,7,TRUE) -> 4414.9 | M41: =VLOOKUP($M$16,Tablas!$A$374:$H$397,8,TRUE) -> 3350.66
A42: Cobertura de actividades peligrosas | C42: 1 | F42: Prima de Cónyuge | H42: n/a | I42: =IF($J$16=1,0,(VLOOKUP($M$18,Tablas!$A$374:$H$397,4,TRUE))) -> 11953.09 | J42: =IF($J$16=1,0,(VLOOKUP($M$18,Tablas!$A$374:$H$397,5,TRUE))) -> 9168.47 | K42: =IF($J$16=1,0,(VLOOKUP($M$18,Tablas!$A$374:$H$397,6,TRUE))) -> 6555.57 | L42: =IF($J$16=1,0,(VLOOKUP($M$18,Tablas!$A$374:$H$397,7,TRUE))) -> 5120.86 | M42: =IF($J$16=1,0,(VLOOKUP($M$18,Tablas!$A$374:$H$397,8,TRUE))) -> 3962.28
A43: Chequeos generales de rutina | C43: Hasta US$150 por año póliza.Sin deducible | F43: Primas Hijos : | H43: n/a | I43: =IF($J$18=0,0,(VLOOKUP($J$18,Tablas!$A$398:$H$400,4,TRUE))) -> 5241.7 | J43: =IF($J$18=0,0,(VLOOKUP($J$18,Tablas!$A$398:$H$400,5,TRUE))) -> 3600.29 | K43: =IF($J$18=0,0,(VLOOKUP($J$18,Tablas!$A$398:$H$400,6,TRUE))) -> 2720.49 | L43: =IF($J$18=0,0,(VLOOKUP($J$18,Tablas!$A$398:$H$400,7,TRUE))) -> 2373.87 | M43: =IF($J$18=0,0,(VLOOKUP($J$18,Tablas!$A$398:$H$400,8,TRUE))) -> 1671.09
A44: Cobertura de VIH, SIDA, CAS | C44: Solo como efecto de transfusión de sangre | F44: Prima Rider Complic. Maternidad | H44: n/a | I44: =+IF($I$20=FALSE,0,Tablas!D$401) -> 0 | J44: =+IF($I$20=FALSE,0,Tablas!E$401) -> 0 | K44: =+IF($I$20=FALSE,0,Tablas!F$401) -> 0 | L44: =+IF($I$20=FALSE,0,Tablas!G$401) -> 0 | M44: =+IF($I$20=FALSE,0,Tablas!H$401) -> 0
A45: Cobertura de brazos y piernas artificiales | C45: $30,000 por año y hasta $120,000 de por vida | F45: Prima Rider Trasplante Organos | H45: n/a | I45: =IF($I$22=FALSE,0,Tablas!D$402) -> 0 | J45: =IF($I$22=FALSE,0,Tablas!E$402) -> 0 | K45: =IF($I$22=FALSE,0,Tablas!F$402) -> 0 | L45: =IF($I$22=FALSE,0,Tablas!G$402) -> 0 | M45: =IF($I$22=FALSE,0,Tablas!H$402) -> 0
A46: Cobertura extendida para dependientes en caso de muerte de asegurado principal | C46: 2 años sin costo | F46: TOTAL PRIMA NETA : | H46: n/a | I46: =SUM(I41:I45) -> 27310.37 | J46: 20710.28 | K46: 15203.05 | L46: 11909.63 | M46: 8984.03
F47: Costo Administrativo Anual : | H47: n/a | I47: 75 | J47: 75 | K47: 75 | L47: 75 | M47: 75
F48: GRAN TOTAL (1ra Cuota) : | H48: n/a | I48: =SUM(I46:I47) -> 27385.37 | J48: =SUM(J46:J47) -> 20785.28 | K48: =SUM(K46:K47) -> 15278.05 | L48: =SUM(L46:L47) -> 11984.63 | M48: =SUM(M46:M47) -> 9059.03
F49: GRAN TOTAL (2da Cuota) : | H49: n/a | I49: =I46 -> 27310.37 | J49: =J46 -> 20710.28 | K49: 15203.05 | L49: 11909.63 | M49: 8984.03
F50: Tarifas en US $ - Válidas desde 01 Ene 2013

Sheet Secure
C10: Cotización de Seguro Médico Internacional - Bupa SECURE Care
H12: =+'INGRESO DE DATOS'!$D$12 -> NOMBRE COMPLETO
H14: =+'INGRESO DE DATOS'!$D$21 -> AGENCIA
J16: =+'INGRESO DE DATOS'!$G$14 -> 2 | M16: =+'INGRESO DE DATOS'!$G$16 -> 50
F17: FECHA DE COTIZACION :
F18: =NOW() -> 2021-11-04T16:57:39.430 | J18: =+'INGRESO DE DATOS'!$J$14 -> 5 | M18: =+'INGRESO DE DATOS'!$J$16 -> 55
I20: TRUE | K20: COMPLICACIONES DE MATERNIDAD
I22: TRUE | K22: TRASPLANTE DE ORGANOS
F25: Deducibles | H25: PLAN 1 | I25: PLAN 2 | J25: PLAN 3 | K25: PLAN 4 | L25: PLAN 5 | M25: PLAN 6
F26: Dentro del pais de residencia | H26: n/a | I26: 1000 | J26: 2000 | K26: 5000 | L26: 10000 | M26: 20000
F27: Fuera del pais de residencia | H27: n/a | I27: 2000 | J27: 3000 | K27: 5000 | L27: 10000 | M27: 20000
F30: Tarifas Anuales
F31: Prima de Titular : | H31: n/a | I31: =VLOOKUP($M$16,Tablas!$A$408:$H$431,4,TRUE) -> 14200 | J31: =VLOOKUP($M$16,Tablas!$A$408:$H$431,5,TRUE) -> 12392 | K31: =VLOOKUP($M$16,Tablas!$A$408:$H$431,6,TRUE) -> 8643 | L31: =VLOOKUP($M$16,Tablas!$A$408:$H$431,7,TRUE) -> 7396 | M31: =VLOOKUP($M$16,Tablas!$A$408:$H$431,8,TRUE) -> 5543
F32: Prima de Cónyuge | H32: n/a | I32: =IF($J$16=1,0,(VLOOKUP($M$18,Tablas!$A$408:$H$431,4,TRUE))) -> 16688 | J32: =IF($J$16=1,0,(VLOOKUP($M$18,Tablas!$A$408:$H$431,5,TRUE))) -> 14795 | K32: =IF($J$16=1,0,(VLOOKUP($M$18,Tablas!$A$408:$H$431,6,TRUE))) -> 10239 | L32: =IF($J$16=1,0,(VLOOKUP($M$18,Tablas!$A$408:$H$431,7,TRUE))) -> 8758 | M32: =IF($J$16=1,0,(VLOOKUP($M$18,Tablas!$A$408:$H$431,8,TRUE))) -> 6549
F33: Primas Hijos : | H33: n/a | I33: =IF($J$18=0,0,(VLOOKUP($J$18,Tablas!$A$432:$H$434,4,TRUE))) -> 8659 | J33: =IF($J$18=0,0,(VLOOKUP($J$18,Tablas!$A$432:$H$434,5,TRUE))) -> 4411 | K33: =IF($J$18=0,0,(VLOOKUP($J$18,Tablas!$A$432:$H$434,6,TRUE))) -> 3836 | L33: =IF($J$18=0,0,(VLOOKUP($J$18,Tablas!$A$432:$H$434,7,TRUE))) -> 3275 | M33: =IF($J$18=0,0,(VLOOKUP($J$18,Tablas!$A$432:$H$434,8,TRUE))) -> 2423
F34: Prima Rider Complic. Maternidad | H34: n/a | I34: =+IF($I$20=FALSE,0,Tablas!D$435) -> 225 | J34: =+IF($I$20=FALSE,0,Tablas!E$435) -> 225 | K34: =+IF($I$20=FALSE,0,Tablas!F$435) -> 225 | L34: =+IF($I$20=FALSE,0,Tablas!G$435) -> 225 | M34: =+IF($I$20=FALSE,0,Tablas!H$435) -> 225
F35: Prima Rider Trasplante Organos | H35: n/a | I35: =IF($I$22=FALSE,0,Tablas!D$436) -> 300 | J35: =IF($I$22=FALSE,0,Tablas!E$436) -> 300 | K35: =IF($I$22=FALSE,0,Tablas!F$436) -> 300 | L35: =IF($I$22=FALSE,0,Tablas!G$436) -> 300 | M35: =IF($I$22=FALSE,0,Tablas!H$436) -> 300
F36: TOTAL PRIMA NETA : | H36: n/a | I36: =SUM(I31:I35) -> 40072 | J36: 32123 | K36: 23243 | L36: 19954 | M36: 15040
F37: Costo Administrativo Anual : | H37: n/a | I37: 75 | J37: 75 | K37: 75 | L37: 75 | M37: 75
F38: GRAN TOTAL : | H38: n/a | I38: =SUM(I36:I37) -> 40147 | J38: =SUM(J36:J37) -> 32198 | K38: =SUM(K36:K37) -> 23318 | L38: =SUM(L36:L37) -> 20029 | M38: =SUM(M36:M37) -> 15115
F40: Tarifas Semestrales
F41: Prima de Titular : | H41: n/a | I41: =VLOOKUP($M$16,Tablas!$A$441:$H$464,4,TRUE) -> 7526 | J41: =VLOOKUP($M$16,Tablas!$A$441:$H$464,5,TRUE) -> 6567.76 | K41: =VLOOKUP($M$16,Tablas!$A$441:$H$464,6,TRUE) -> 4580.79 | L41: =VLOOKUP($M$16,Tablas!$A$441:$H$464,7,TRUE) -> 3919.88 | M41: =VLOOKUP($M$16,Tablas!$A$441:$H$464,8,TRUE) -> 2937.79
F42: Prima de Cónyuge | H42: n/a | I42: =IF($J$16=1,0,(VLOOKUP($M$18,Tablas!$A$441:$H$464,4,TRUE))) -> 8844.64 | J42: =IF($J$16=1,0,(VLOOKUP($M$18,Tablas!$A$441:$H$464,5,TRUE))) -> 7841.35 | K42: =IF($J$16=1,0,(VLOOKUP($M$18,Tablas!$A$441:$H$464,6,TRUE))) -> 5426.67 | L42: =IF($J$16=1,0,(VLOOKUP($M$18,Tablas!$A$441:$H$464,7,TRUE))) -> 4641.74 | M42: =IF($J$16=1,0,(VLOOKUP($M$18,Tablas!$A$441:$H$464,8,TRUE))) -> 3470.97
F43: Primas Hijos : | H43: n/a | I43: =IF($J$18=0,0,(VLOOKUP($J$18,Tablas!$A$465:$H$467,4,TRUE))) -> 4589.27 | J43: =IF($J$18=0,0,(VLOOKUP($J$18,Tablas!$A$465:$H$467,5,TRUE))) -> 2337.83 | K43: =IF($J$18=0,0,(VLOOKUP($J$18,Tablas!$A$465:$H$467,6,TRUE))) -> 2033.08 | L43: =IF($J$18=0,0,(VLOOKUP($J$18,Tablas!$A$465:$H$467,7,TRUE))) -> 1735.75 | M43: =IF($J$18=0,0,(VLOOKUP($J$18,Tablas!$A$465:$H$467,8,TRUE))) -> 1284.19
F44: Prima Rider Complic. Maternidad | H44: n/a | I44: =+IF($I$20=FALSE,0,Tablas!D$468) -> 119.25 | J44: =+IF($I$20=FALSE,0,Tablas!E$468) -> 119.25 | K44: =+IF($I$20=FALSE,0,Tablas!F$468) -> 119.25 | L44: =+IF($I$20=FALSE,0,Tablas!G$468) -> 119.25 | M44: =+IF($I$20=FALSE,0,Tablas!H$468) -> 119.25
F45: Prima Rider Trasplante Organos | H45: n/a | I45: =IF($I$22=FALSE,0,Tablas!D$469) -> 159 | J45: =IF($I$22=FALSE,0,Tablas!E$469) -> 159 | K45: =IF($I$22=FALSE,0,Tablas!F$469) -> 159 | L45: =IF($I$22=FALSE,0,Tablas!G$469) -> 159 | M45: =IF($I$22=FALSE,0,Tablas!H$469) -> 159
F46: TOTAL PRIMA NETA : | H46: n/a | I46: =SUM(I41:I45) -> 21238.16 | J46: 17025.19 | K46: 12318.79 | L46: 10575.62 | M46: 7971.2
F47: Costo Administrativo Anual : | H47: n/a | I47: 75 | J47: 75 | K47: 75 | L47: 75 | M47: 75
F48: GRAN TOTAL (1ra Cuota) : | H48: n/a | I48: =SUM(I46:I47) -> 21313.16 | J48: =SUM(J46:J47) -> 17100.19 | K48: =SUM(K46:K47) -> 12393.79 | L48: =SUM(L46:L47) -> 10650.62 | M48: =SUM(M46:M47) -> 8046.2
F49: GRAN TOTAL (2da Cuota) : | H49: n/a | I49: =I46 -> 21238.16 | J49: =J46 -> 17025.19 | K49: 12318.79 | L49: 10575.62 | M49: 7971.2
F50: Tarifas en US $ - Válidas desde 01 enero 2022
F52: Este presupuesto solamente tiene carácter informativo y en ningún momento expresa compromiso legal para suministrarle cobertura de seguro. La emisión de una póliza de seguro Bupa está sujeta a todas las evaluaciones de riesgo por parte de Bupa y a la recepción de todos los pagos de prima requeridos.

Sheet Essential
C10: Cotización de Seguro Médico Internacional - Bupa ESSENTIAL Care
H12: =+'INGRESO DE DATOS'!$D$12 -> NOMBRE COMPLETO
H14: =+'INGRESO DE DATOS'!$D$21 -> AGENCIA
J16: =+'INGRESO DE DATOS'!$G$14 -> 2 | M16: =+'INGRESO DE DATOS'!$G$16 -> 50
F17: FECHA DE COTIZACION :
F18: =NOW() -> 2021-11-04T16:57:39.430 | J18: =+'INGRESO DE DATOS'!$J$14 -> 5 | M18: =+'INGRESO DE DATOS'!$J$16 -> 55
I20: TRUE | K20: COMPLICACIONES DE MATERNIDAD
I22: TRUE | K22: TRASPLANTE DE ORGANOS
F25: Deducibles | H25: PLAN 1 | I25: PLAN 2 | J25: PLAN 3 | K25: PLAN 4 | L25: PLAN 5 | M25: PLAN 6
F26: Dentro del pais de residencia | H26: n/a | I26: 1000 | J26: 2000 | K26: 5000 | L26: 10000 | M26: 20000
F27: Fuera del pais de residencia | H27: n/a | I27: 2000 | J27: 3000 | K27: 5000 | L27: 10000 | M27: 20000
F30: Tarifas Anuales
F31: Prima de Titular : | H31: n/a | I31: =VLOOKUP($M$16,Tablas!$A$475:$H$498,4,TRUE) -> 11744 | J31: =VLOOKUP($M$16,Tablas!$A$475:$H$498,5,TRUE) -> 10253 | K31: =VLOOKUP($M$16,Tablas!$A$475:$H$498,6,TRUE) -> 7142 | L31: =VLOOKUP($M$16,Tablas!$A$475:$H$498,7,TRUE) -> 6110 | M31: =VLOOKUP($M$16,Tablas!$A$475:$H$498,8,TRUE) -> 4583
F32: Prima de Cónyuge | H32: n/a | I32: =IF($J$16=1,0,(VLOOKUP($M$18,Tablas!$A$475:$H$498,4,TRUE))) -> 13809 | J32: =IF($J$16=1,0,(VLOOKUP($M$18,Tablas!$A$475:$H$498,5,TRUE))) -> 12245 | K32: =IF($J$16=1,0,(VLOOKUP($M$18,Tablas!$A$475:$H$498,6,TRUE))) -> 8470 | L32: =IF($J$16=1,0,(VLOOKUP($M$18,Tablas!$A$475:$H$498,7,TRUE))) -> 7252 | M32: =IF($J$16=1,0,(VLOOKUP($M$18,Tablas!$A$475:$H$498,8,TRUE))) -> 5417
F33: Primas Hijos : | H33: n/a | I33: =IF($J$18=0,0,(VLOOKUP($J$18,Tablas!$A$499:$H$501,4,TRUE))) -> 7175 | J33: =IF($J$18=0,0,(VLOOKUP($J$18,Tablas!$A$499:$H$501,5,TRUE))) -> 3655 | K33: =IF($J$18=0,0,(VLOOKUP($J$18,Tablas!$A$499:$H$501,6,TRUE))) -> 3180 | L33: =IF($J$18=0,0,(VLOOKUP($J$18,Tablas!$A$499:$H$501,7,TRUE))) -> 2713 | M33: =IF($J$18=0,0,(VLOOKUP($J$18,Tablas!$A$499:$H$501,8,TRUE))) -> 2006
F34: Prima Rider Complic. Maternidad | H34: n/a | I34: =+IF($I$20=FALSE,0,Tablas!D$502) -> 225 | J34: =+IF($I$20=FALSE,0,Tablas!E$502) -> 225 | K34: =+IF($I$20=FALSE,0,Tablas!F$502) -> 225 | L34: =+IF($I$20=FALSE,0,Tablas!G$502) -> 225 | M34: =+IF($I$20=FALSE,0,Tablas!H$502) -> 225
F35: Prima Rider Trasplante Organos | H35: n/a | I35: =IF($I$22=FALSE,0,Tablas!D$503) -> 300 | J35: =IF($I$22=FALSE,0,Tablas!E$503) -> 300 | K35: =IF($I$22=FALSE,0,Tablas!F$503) -> 300 | L35: =IF($I$22=FALSE,0,Tablas!G$503) -> 300 | M35: =IF($I$22=FALSE,0,Tablas!H$503) -> 300
F36: TOTAL PRIMA NETA : | H36: n/a | I36: =SUM(I31:I35) -> 33253 | J36: 26678 | K36: 19317 | L36: 16600 | M36: 12531
F37: Costo Administrativo Anual : | H37: n/a | I37: 75 | J37: 75 | K37: 75 | L37: 75 | M37: 75
F38: GRAN TOTAL : | H38: n/a | I38: =SUM(I36:I37) -> 33328 | J38: =SUM(J36:J37) -> 26753 | K38: =SUM(K36:K37) -> 19392 | L38: =SUM(L36:L37) -> 16675 | M38: =SUM(M36:M37) -> 12606
F40: Tarifas Semestrales
F41: Prima de Titular : | H41: n/a | I41: =VLOOKUP($M$16,Tablas!$A$508:$H$531,4,TRUE) -> 6224.32 | J41: =VLOOKUP($M$16,Tablas!$A$508:$H$531,5,TRUE) -> 5434.09 | K41: =VLOOKUP($M$16,Tablas!$A$508:$H$531,6,TRUE) -> 3785.26 | L41: =VLOOKUP($M$16,Tablas!$A$508:$H$531,7,TRUE) -> 3238.3 | M41: =VLOOKUP($M$16,Tablas!$A$508:$H$531,8,TRUE) -> 2428.99
F42: Prima de Cónyuge | H42: n/a | I42: =IF($J$16=1,0,(VLOOKUP($M$18,Tablas!$A$508:$H$531,4,TRUE))) -> 7318.77 | J42: =IF($J$16=1,0,(VLOOKUP($M$18,Tablas!$A$508:$H$531,5,TRUE))) -> 6489.85 | K42: =IF($J$16=1,0,(VLOOKUP($M$18,Tablas!$A$508:$H$531,6,TRUE))) -> 4489.1 | L42: =IF($J$16=1,0,(VLOOKUP($M$18,Tablas!$A$508:$H$531,7,TRUE))) -> 3843.56 | M42: =IF($J$16=1,0,(VLOOKUP($M$18,Tablas!$A$508:$H$531,8,TRUE))) -> 2871.01
F43: Primas Hijos : | H43: n/a | I43: =IF($J$18=0,0,(VLOOKUP($J$18,Tablas!$A$532:$H$534,4,TRUE))) -> 3802.75 | J43: =IF($J$18=0,0,(VLOOKUP($J$18,Tablas!$A$532:$H$534,5,TRUE))) -> 1937.15 | K43: =IF($J$18=0,0,(VLOOKUP($J$18,Tablas!$A$532:$H$534,6,TRUE))) -> 1685.4 | L43: =IF($J$18=0,0,(VLOOKUP($J$18,Tablas!$A$532:$H$534,7,TRUE))) -> 1437.89 | M43: =IF($J$18=0,0,(VLOOKUP($J$18,Tablas!$A$532:$H$534,8,TRUE))) -> 1063.18
F44: Prima Rider Complic. Maternidad | H44: n/a | I44: =+IF($I$20=FALSE,0,Tablas!D$535) -> 119.25 | J44: =+IF($I$20=FALSE,0,Tablas!E$535) -> 119.25 | K44: =+IF($I$20=FALSE,0,Tablas!F$535) -> 119.25 | L44: =+IF($I$20=FALSE,0,Tablas!G$535) -> 119.25 | M44: =+IF($I$20=FALSE,0,Tablas!H$535) -> 119.25
F45: Prima Rider Trasplante Organos | H45: n/a | I45: =IF($I$22=FALSE,0,Tablas!D$536) -> 159 | J45: =IF($I$22=FALSE,0,Tablas!E$536) -> 159 | K45: =IF($I$22=FALSE,0,Tablas!F$536) -> 159 | L45: =IF($I$22=FALSE,0,Tablas!G$536) -> 159 | M45: =IF($I$22=FALSE,0,Tablas!H$536) -> 159
F46: TOTAL PRIMA NETA : | H46: n/a | I46: =SUM(I41:I45) -> 17624.09 | J46: 14139.34 | K46: 10238.01 | L46: 8798 | M46: 6641.43
F47: Costo Administrativo Anual : | H47: n/a | I47: 75 | J47: 75 | K47: 75 | L47: 75 | M47: 75
F48: GRAN TOTAL (1ra Cuota) : | H48: n/a | I48: =SUM(I46:I47) -> 17699.09 | J48: =SUM(J46:J47) -> 14214.34 | K48: =SUM(K46:K47) -> 10313.01 | L48: =SUM(L46:L47) -> 8873 | M48: =SUM(M46:M47) -> 6716.43
F49: GRAN TOTAL (2da Cuota) : | H49: n/a | I49: =I46 -> 17624.09 | J49: =J46 -> 14139.34 | K49: 10238.01 | L49: 8798 | M49: 6641.43
F50: Tarifas en US $ - Válidas desde 01 enero 2022
F52: Este presupuesto solamente tiene carácter informativo y en ningún momento expresa compromiso legal para suministrarle cobertura de seguro. La emisión de una póliza de seguro Bupa está sujeta a todas las evaluaciones de riesgo por parte de Bupa y a la recepción de todos los pagos de prima requeridos.

Sheet Critical
C10: Cotización de Seguro Médico Internacional - Bupa CRITICAL Care
H12: =+'INGRESO DE DATOS'!$D$12 -> NOMBRE COMPLETO
H14: =+'INGRESO DE DATOS'!$D$21 -> AGENCIA
J16: =+'INGRESO DE DATOS'!$G$14 -> 2 | M16: =+'INGRESO DE DATOS'!$G$16 -> 50
F17: FECHA DE COTIZACION :
F18: =NOW() -> 2021-11-04T16:57:39.430 | J18: =+'INGRESO DE DATOS'!$J$14 -> 5 | M18: =+'INGRESO DE DATOS'!$J$16 -> 55
J20: TRUE | M20: =IF(M16>=M18,M16,M18) -> 55
F22: CONDICION CRITICA CUBIERTA | I22: MAXIMO POR AÑO POLIZA | K22: TRASPLANTE DE ORGANOS
F24: Enfermedades neurológicas y accidentes cerebro-vasculares | I24: 150000 | K24: Tipo de trasplante | M24: Máximo Vitalicio
I25: por asegurado por año póliza | M25: por persona
F26: Cirugías cardíacas y angioplastías | I26: 150000 | K26: Corazón | M26: 300000
I27: por asegurado por año póliza | K27: Corazón y Pulmón (simultáneamente) | M27: 300000
F28: Tratamiento de cáncer | I28: 200000 | K28: Pulmón | M28: 250000
I29: por asegurado por año póliza | K29: Pancreas | M29: 250000
F30: Trauma grave (Politraumatismos) | I30: 150000 | K30: Pancreas y Riñón (simultáneamente) | M30: 300000
I31: por asegurado por año póliza | K31: Riñón | M31: 200000
F32: Insuficiencia renal crónica (Diálisis) | I32: 100000 | K32: Hígado | M32: 200000
I33: por asegurado por año póliza | K33: Médula ósea | M33: 250000
F34: Quemaduras graves | I34: 300000 | K34: La cobertura de trasplante de órganos está limitada a la Red de Proveedores para Procedimiento de Trasplante de la Compañía y no se proporcionará cobertura en proveedores fuera de esta Red especializada.
I35: por asegurado por año póliza
F36: Desorden infeccioso grave (Septicemia) | I36: 150000
I37: por asegurado por año póliza
F39: Deducibles | H39: PLAN 1 | I39: PLAN 2 | J39: PLAN 3 | K39: PLAN 4 | L39: PLAN 5 | M39: PLAN 6
F40: Dentro del pais de residencia | H40: 2000 | I40: 3500 | J40: 5000 | K40: 10000 | L40: 20000 | M40: 50000
F41: Fuera del pais de residencia | H41: 2000 | I41: 3500 | J41: 5000 | K41: 10000 | L41: 20000 | M41: 50000
F43: Tarifas Anuales
F44: Prima por plan individual : | H44: =IF((($J$16+$J$18)=1),(VLOOKUP($M$20,Tablas!$A$543:$T$544,3,TRUE)),0) -> 0 | I44: =IF((($J$16+$J$18)=1),(VLOOKUP($M$20,Tablas!$A$543:$T$544,6,TRUE)),0) -> 0 | J44: =IF((($J$16+$J$18)=1),(VLOOKUP($M$20,Tablas!$A$543:$T$544,9,TRUE)),0) -> 0 | K44: =IF((($J$16+$J$18)=1),(VLOOKUP($M$20,Tablas!$A$543:$T$544,12,TRUE)),0) -> 0 | L44: =IF((($J$16+$J$18)=1),(VLOOKUP($M$20,Tablas!$A$543:$T$544,15,TRUE)),0) -> 0 | M44: =IF((($J$16+$J$18)=1),(VLOOKUP($M$20,Tablas!$A$543:$T$544,18,TRUE)),0) -> 0
F45: Prima por plan para 2 personas : | H45: =IF((($J$16+$J$18)=2),(VLOOKUP($M$20,Tablas!$A$543:$T$544,4,TRUE)),0) -> 0 | I45: =IF((($J$16+$J$18)=2),(VLOOKUP($M$20,Tablas!$A$543:$T$544,7,TRUE)),0) -> 0 | J45: =IF((($J$16+$J$18)=2),(VLOOKUP($M$20,Tablas!$A$543:$T$544,10,TRUE)),0) -> 0 | K45: =IF((($J$16+$J$18)=2),(VLOOKUP($M$20,Tablas!$A$543:$T$544,13,TRUE)),0) -> 0 | L45: =IF((($J$16+$J$18)=2),(VLOOKUP($M$20,Tablas!$A$543:$T$544,16,TRUE)),0) -> 0 | M45: =IF((($J$16+$J$18)=2),(VLOOKUP($M$20,Tablas!$A$543:$T$544,19,TRUE)),0) -> 0
F46: Prima por plan familiar : | H46: =IF((($J$16+$J$18)>=3),(VLOOKUP($M$20,Tablas!$A$543:$T$544,5,TRUE)),0) -> 9680 | I46: =IF((($J$16+$J$18)>=3),(VLOOKUP($M$20,Tablas!$A$543:$T$544,8,TRUE)),0) -> 7518 | J46: =IF((($J$16+$J$18)>=3),(VLOOKUP($M$20,Tablas!$A$543:$T$544,11,TRUE)),0) -> 6453 | K46: =IF((($J$16+$J$18)>=3),(VLOOKUP($M$20,Tablas!$A$543:$T$544,14,TRUE)),0) -> 4933 | L46: =IF((($J$16+$J$18)>=3),(VLOOKUP($M$20,Tablas!$A$543:$T$544,17,TRUE)),0) -> 3481 | M46: =IF((($J$16+$J$18)>=3),(VLOOKUP($M$20,Tablas!$A$543:$T$544,20,TRUE)),0) -> 1940
F47: TOTAL PRIMA NETA : | H47: =SUM(H44:H46) -> 9680 | I47: =SUM(I44:I46) -> 7518 | J47: 6453 | K47: 4933 | L47: 3481 | M47: 1940
F48: Costo Administrativo Anual : | H48: 75 | I48: 75 | J48: 75 | K48: 75 | L48: 75 | M48: 75
F49: GRAN TOTAL : | H49: =SUM(H47:H48) -> 9755 | I49: 7593 | J49: 6528 | K49: 5008 | L49: 3556 | M49: 2015
F50: Tarifas en US $ - Válidas desde 01 enero 2022
F53: Este presupuesto solamente tiene carácter informativo y en ningún momento expresa compromiso legal para suministrarle cobertura de seguro. La emisión de una póliza de seguro Bupa está sujeta a todas las evaluaciones de riesgo por parte de Bupa y a la recepción de todos los pagos de prima requeridos.

Sheet Resumen tarifas anuales
C12: Cotización de Seguro Médico Internacional - BUPA CARE
C14: =+'INGRESO DE DATOS'!$D$12 -> NOMBRE COMPLETO
C16: =+'INGRESO DE DATOS'!$D$21 -> AGENCIA
E18: =+'INGRESO DE DATOS'!$G$14 -> 2 | H18: =+'INGRESO DE DATOS'!$G$16 -> 50
A19: FECHA DE COTIZACION :
A20: =NOW() -> 2021-11-04T16:57:39.430 | E20: =+'INGRESO DE DATOS'!$J$14 -> 5 | H20: =+'INGRESO DE DATOS'!$J$16 -> 55
A22: Deducibles | C22: PLAN 1 | D22: PLAN 2 | E22: PLAN 3 | F22: PLAN 4 | G22: PLAN 5 | H22: PLAN 6
A23: Dentro del pais de residencia | C23: n/a | D23: 1000 | E23: 2000 | F23: 5000 | G23: 10000 | H23: 20000
A24: Fuera del pais de residencia | C24: n/a | D24: 2000 | E24: 3000 | F24: 5000 | G24: 10000 | H24: 20000
A26: PRODUCTOS | C26: Tarifas Anuales
A27: Bupa Exclusive Care | C27: n/a | D27: =+Exclusive!I37 -> 83208 | E27: =+Exclusive!J37 -> 58385 | F27: =+Exclusive!K37 -> 42887 | G27: =+Exclusive!L37 -> 34864 | H27: =+Exclusive!M37 -> 27428
A28: Bupa Privilege Care | C28: n/a | D28: =+Privilege!I37 -> 71309 | E28: =+Privilege!J37 -> 50882 | F28: =+Privilege!K37 -> 37183 | G28: =+Privilege!L37 -> 30530 | H28: =+Privilege!M37 -> 23295
A29: Bupa Advantage Care | C29: n/a | D29: =+'Advantage (Mundial)'!I38 -> 52160 | E29: =+'Advantage (Mundial)'!J38 -> 39700 | F29: =+'Advantage (Mundial)'!K38 -> 29266 | G29: =+'Advantage (Mundial)'!L38 -> 23092 | H29: =+'Advantage (Mundial)'!M38 -> 17562
A30: Bupa Secure Care | C30: n/a | D30: =+Secure!I38 -> 40147 | E30: =+Secure!J38 -> 32198 | F30: =+Secure!K38 -> 23318 | G30: =+Secure!L38 -> 20029 | H30: =+Secure!M38 -> 15115
A31: Bupa Essential Care | C31: n/a | D31: =+Essential!I38 -> 33328 | E31: =+Essential!J38 -> 26753 | F31: =+Essential!K38 -> 19392 | G31: =+Essential!L38 -> 16675 | H31: =+Essential!M38 -> 12606
A33: Deducibles | C33: PLAN 1 | D33: PLAN 2 | E33: PLAN 3 | F33: PLAN 4 | G33: PLAN 5 | H33: PLAN 6
A34: Dentro del pais de residencia | C34: 2000 | D34: 3500 | E34: 5000 | F34: 10000 | G34: 20000 | H34: 50000
A35: Fuera del pais de residencia | C35: 2000 | D35: 3500 | E35: 5000 | F35: 10000 | G35: 20000 | H35: 50000
C36: Tarifas Anuales
A37: Bupa Critical Care | C37: =+Critical!H49 -> 9755 | D37: =+Critical!I49 -> 7593 | E37: =+Critical!J49 -> 6528 | F37: =+Critical!K49 -> 5008 | G37: =+Critical!L49 -> 3556 | H37: =+Critical!M49 -> 2015
A38: Tarifas en US $ - Válidas desde 01 enero 2022
A40: Este presupuesto solamente tiene carácter informativo y en ningún momento expresa compromiso legal para suministrarle cobertura de seguro. La emisión de una póliza de seguro Bupa está sujeta a todas las evaluaciones de riesgo por parte de Bupa y a la recepción de todos los pagos de prima requeridos.

Sheet Comparacion de Beneficios
C2: 2022 BUPA CARE COMPARACION DE BENEFICIOS

Sheet Tablas (hidden)
A2: EXCLUSIVE | J2: FACTOR SEMESTRAL : | L2: 0.53
A3: TARIFAS ANUALES
A4: EDAD
D5: DW2 | E5: DW3 | F5: DW4 | G5: DW5 | H5: DW6 | J5: 1 | K5: 2 | L5: 3 | M5: 4 | N5: 5
A6: 18 | B6: - 24 | D6: 16637 | E6: 10987 | F6: 7515 | G6: 5280 | H6: 4150 | J6: TRUE | K6: TRUE | L6: TRUE | M6: TRUE | N6: TRUE
A7: 25 | B7: - 29 | D7: 17450 | E7: 12143 | F7: 8323 | G7: 5855 | H7: 4598 | J7: TRUE | K7: TRUE | L7: TRUE | M7: TRUE | N7: TRUE
A8: 30 | B8: - 34 | D8: 18158 | E8: 13030 | F8: 9326 | G8: 7018 | H8: 5530 | J8: TRUE | K8: TRUE | L8: TRUE | M8: TRUE | N8: TRUE
A9: 35 | B9: - 39 | D9: 20331 | E9: 14585 | F9: 10461 | G9: 7871 | H9: 6195 | J9: TRUE | K9: TRUE | L9: TRUE | M9: TRUE | N9: TRUE
A10: 40 | B10: - 44 | D10: 23573 | E10: 15960 | F10: 11607 | G10: 8660 | H10: 6812 | J10: TRUE | K10: TRUE | L10: TRUE | M10: TRUE | N10: TRUE
A11: 45 | B11: - 49 | D11: 26360 | E11: 17847 | F11: 12976 | G11: 9682 | H11: 7623 | J11: TRUE | K11: TRUE | L11: TRUE | M11: TRUE | N11: TRUE
A12: 50 | B12: - 54 | D12: 33738 | E12: 23427 | F12: 16941 | G12: 13679 | H12: 10780 | J12: TRUE | K12: TRUE | L12: TRUE | M12: TRUE | N12: TRUE
A13: 55 | B13: - 59 | D13: 35901 | E13: 24929 | F13: 18026 | G13: 14561 | H13: 11478 | J13: TRUE | K13: TRUE | L13: TRUE | M13: TRUE | N13: TRUE
A14: 60 | D14: 39113 | E14: 27204 | F14: 20749 | G14: 17547 | H14: 14264 | J14: TRUE | K14: TRUE | L14: TRUE | M14: TRUE | N14: TRUE
A15: 61 | D15: 42022 | E15: 29226 | F15: 22284 | G15: 18864 | H15: 15330 | J15: TRUE | K15: TRUE | L15: TRUE | M15: TRUE | N15: TRUE
A16: 62 | D16: 46009 | E16: 32015 | F16: 24406 | G16: 20646 | H16: 16789 | J16: TRUE | K16: TRUE | L16: TRUE | M16: TRUE | N16: TRUE
A17: 63 | D17: 48922 | E17: 34036 | F17: 25947 | G17: 21962 | H17: 17851 | J17: TRUE | K17: TRUE | L17: TRUE | M17: TRUE | N17: TRUE
A18: 64 | D18: 52927 | E18: 36834 | F18: 28078 | G18: 23759 | H18: 19324 | J18: TRUE | K18: TRUE | L18: TRUE | M18: TRUE | N18: TRUE
A19: 65 | D19: 69195 | E19: 48047 | F19: 35511 | G19: 31695 | H19: 27258 | J19: TRUE | K19: TRUE | L19: TRUE | M19: TRUE | N19: TRUE
A20: 66 | D20: 80389 | E20: 55841 | F20: 41269 | G20: 36845 | H20: 31675 | J20: TRUE | K20: TRUE | L20: TRUE | M20: TRUE | N20: TRUE
A21: 67 | D21: 87808 | E21: 60988 | F21: 45081 | G21: 40233 | H21: 34602 | J21: TRUE | K21: TRUE | L21: TRUE | M21: TRUE | N21: TRUE
A22: 68 | D22: 97232 | E22: 67532 | F22: 49913 | G22: 44564 | H22: 38320 | J22: TRUE | K22: TRUE | L22: TRUE | M22: TRUE | N22: TRUE
A23: 69 | D23: 106984 | E23: 74300 | F23: 54924 | G23: 49029 | H23: 42170 | J23: TRUE | K23: TRUE | L23: TRUE | M23: TRUE | N23: TRUE
A24: 70 | D24: 131680 | E24: 90483 | F24: 64666 | G24: 57147 | H24: 49604 | J24: TRUE | K24: TRUE | L24: TRUE | M24: TRUE | N24: TRUE
A25: 71 | D25: 136847 | E25: 94032 | F25: 67204 | G25: 59391 | H25: 51556 | J25: TRUE | K25: TRUE | L25: TRUE | M25: TRUE | N25: TRUE
A26: 72 | D26: 140726 | E26: 96695 | F26: 69100 | G26: 61067 | H26: 53017 | J26: TRUE | K26: TRUE | L26: TRUE | M26: TRUE | N26: TRUE
A27: 73 | D27: 145894 | E27: 100254 | F27: 71637 | G27: 63324 | H27: 54969 | J27: TRUE | K27: TRUE | L27: TRUE | M27: TRUE | N27: TRUE
A28: 74 | D28: 148479 | E28: 102021 | F28: 72918 | G28: 64441 | H28: 55937 | J28: TRUE | K28: TRUE | L28: TRUE | M28: TRUE | N28: TRUE
A29: 75 | B29: o más | D29: 154947 | E29: 106463 | F29: 76082 | G29: 67250 | H29: 58375 | J29: TRUE | K29: TRUE | L29: TRUE | M29: TRUE | N29: TRUE
A30: 1 | B30: Hijo | D30: 5787 | E30: 4262 | F30: 3368 | G30: 2815 | H30: 2194 | J30: TRUE | K30: TRUE | L30: TRUE | M30: TRUE | N30: TRUE
A31: 2 | B31: Hijos | D31: 9204 | E31: 6789 | F31: 5358 | G31: 4469 | H31: 3475 | J31: TRUE | K31: TRUE | L31: TRUE | M31: TRUE | N31: TRUE
A32: 3 | B32: Hijos o más | D32: 13494 | E32: 9954 | F32: 7845 | G32: 6549 | H32: 5095 | J32: TRUE | K32: TRUE | L32: TRUE | M32: TRUE | N32: TRUE
A33: 1 | B33: Rider Comp. Maternidad | D33: 0 | E33: 0 | F33: 225 | G33: 225 | H33: 225
A34: 1 | B34: Transplante de organos | D34: 0 | E34: 0 | F34: 0 | G34: 0 | H34: 0
A36: TARIFAS SEMESTRALES
A37: EDAD
D38: DW2 | E38: DW3 | F38: DW4 | G38: DW5 | H38: DW6
A39: 18 | B39: - 24 | D39: =$L$2*D6 -> 8817.61 | E39: =$L$2*E6 -> 5823.11 | F39: 3982.95 | G39: 2798.4 | H39: 2199.5
A40: 25 | B40: - 29 | D40: =$L$2*D7 -> 9248.5 | E40: 6435.79 | F40: 4411.19 | G40: 3103.15 | H40: 2436.94
A41: 30 | B41: - 34 | D41: 9623.74 | E41: 6905.9 | F41: 4942.78 | G41: 3719.54 | H41: 2930.9
A42: 35 | B42: - 39 | D42: 10775.43 | E42: 7730.05 | F42: 5544.33 | G42: 4171.63 | H42: 3283.35
A43: 40 | B43: - 44 | D43: 12493.69 | E43: 8458.8 | F43: 6151.71 | G43: 4589.8 | H43: 3610.36
A44: 45 | B44: - 49 | D44: 13970.8 | E44: 9458.91 | F44: 6877.28 | G44: 5131.46 | H44: 4040.19
A45: 50 | B45: - 54 | D45: 17881.14 | E45: 12416.31 | F45: 8978.73 | G45: 7249.87 | H45: 5713.4
A46: 55 | B46: - 59 | D46: 19027.53 | E46: 13212.37 | F46: 9553.78 | G46: 7717.33 | H46: 6083.34
A47: 60 | D47: 20729.89 | E47: 14418.12 | F47: 10996.97 | G47: 9299.91 | H47: 7559.92
A48: 61 | D48: 22271.66 | E48: 15489.78 | F48: 11810.52 | G48: 9997.92 | H48: 8124.9
A49: 62 | D49: 24384.77 | E49: 16967.95 | F49: 12935.18 | G49: 10942.38 | H49: 8898.17
A50: 63 | D50: 25928.66 | E50: 18039.08 | F50: 13751.91 | G50: =$L$2*G17 -> 11639.86 | H50: 9461.03
A51: 64 | D51: 28051.31 | E51: 19522.02 | F51: 14881.34 | G51: 12592.27 | H51: 10241.72
A52: 65 | D52: 36673.35 | E52: 25464.91 | F52: 18820.83 | G52: 16798.35 | H52: 14446.74
A53: 66 | D53: 42606.17 | E53: 29595.73 | F53: 21872.57 | G53: 19527.85 | H53: 16787.75
A54: 67 | D54: 46538.24 | E54: 32323.64 | F54: 23892.93 | G54: 21323.49 | H54: 18339.06
A55: 68 | D55: 51532.96 | E55: 35791.96 | F55: 26453.89 | G55: 23618.92 | H55: 20309.6
A56: 69 | D56: 56701.52 | E56: 39379 | F56: 29109.72 | G56: 25985.37 | H56: 22350.1
A57: 70 | D57: 69790.4 | E57: 47955.99 | F57: 34272.98 | G57: 30287.91 | H57: 26290.12
A58: 71 | D58: 72528.91 | E58: 49836.96 | F58: 35618.12 | G58: 31477.23 | H58: 27324.68
A59: 72 | D59: 74584.78 | E59: 51248.35 | F59: 36623 | G59: 32365.51 | H59: 28099.01
A60: 73 | D60: 77323.82 | E60: 53134.62 | F60: 37967.61 | G60: 33561.72 | H60: 29133.57
A61: 74 | D61: 78693.87 | E61: 54071.13 | F61: 38646.54 | G61: 34153.73 | H61: 29646.61
A62: 75 | B62: o más | D62: 82121.91 | E62: 56425.39 | F62: 40323.46 | G62: 35642.5 | H62: 30938.75
A63: 1 | B63: Hijo | D63: 3067.11 | E63: 2258.86 | F63: 1785.04 | G63: 1491.95 | H63: 1162.82
A64: 2 | B64: Hijos | D64: 4878.12 | E64: 3598.17 | F64: 2839.74 | G64: 2368.57 | H64: 1841.75
A65: 3 | B65: Hijos o más | D65: 7151.82 | E65: 5275.62 | F65: 4157.85 | G65: 3470.97 | H65: 2700.35
A66: 1 | B66: Rider Comp. Maternidad | D66: =+D33*$L$2 -> 0 | E66: 0 | F66: 119.25 | G66: 119.25 | H66: 119.25
A67: 1 | B67: Transplante de organos | D67: 0 | E67: 0 | F67: 0 | G67: 0 | H67: 0
A69: DIAMOND (LATINAMERICA ONLY)
A70: TARIFAS ANUALES
A71: EDAD
C72: DL1 | D72: DL2 | E72: DL3 | F72: DL4 | G72: DL5 | H72: DL6
A73: 18 | B73: - 24
A74: 25 | B74: - 29
A75: 30 | B75: - 34
A76: 35 | B76: - 39
A77: 40 | B77: - 44
A78: 45 | B78: - 49
A79: 50 | B79: - 54
A80: 55 | B80: - 59
A81: 60
A82: 61
A83: 62
A84: 63
A85: 64
A86: 65
A87: 66
A88: 67
A89: 68
A90: 69
A91: 70
A92: 71
A93: 72
A94: 73
A95: 74
A96: 75 | B96: o más
A97: 1 | B97: Hijo
A98: 2 | B98: Hijos
A99: 3 | B99: Hijos o más
A100: 1 | B100: Rider Comp. Maternidad
A101: 1 | B101: Transplante de organos | C101: 0 | D101: 0 | E101: 0 | F101: 0 | G101: 0 | H101: 0
A103: TARIFAS SEMESTRALES
A104: EDAD
C105: DL1 | D105: DL2 | E105: DL3 | F105: DL4 | G105: DL5 | H105: DL6
A106: 18 | B106: - 24 | C106: =+C73*$L$2 -> 0 | D106: 0 | E106: 0 | F106: 0 | G106: 0 | H106: 0
A107: 25 | B107: - 29 | C107: 0 | D107: 0 | E107: 0 | F107: 0 | G107: 0 | H107: 0
A108: 30 | B108: - 34 | C108: 0 | D108: 0 | E108: 0 | F108: 0 | G108: 0 | H108: 0
A109: 35 | B109: - 39 | C109: 0 | D109: 0 | E109: 0 | F109: 0 | G109: 0 | H109: 0
A110: 40 | B110: - 44 | C110: 0 | D110: 0 | E110: 0 | F110: 0 | G110: 0 | H110: 0
A111: 45 | B111: - 49 | C111: 0 | D111: 0 | E111: 0 | F111: 0 | G111: 0 | H111: 0
A112: 50 | B112: - 54 | C112: 0 | D112: 0 | E112: 0 | F112: 0 | G112: 0 | H112: 0
A113: 55 | B113: - 59 | C113: 0 | D113: 0 | E113: 0 | F113: 0 | G113: 0 | H113: 0
A114: 60 | C114: 0 | D114: 0 | E114: 0 | F114: 0 | G114: 0 | H114: 0
A115: 61 | C115: 0 | D115: 0 | E115: 0 | F115: 0 | G115: 0 | H115: 0
A116: 62 | C116: =+C83*$L$2 -> 0 | D116: 0 | E116: 0 | F116: 0 | G116: 0 | H116: 0
A117: 63 | C117: 0 | D117: 0 | E117: 0 | F117: 0 | G117: 0 | H117: 0
A118: 64 | C118: 0 | D118: 0 | E118: 0 | F118: 0 | G118: 0 | H118: 0
A119: 65 | C119: 0 | D119: 0 | E119: 0 | F119: 0 | G119: 0 | H119: 0
A120: 66 | C120: 0 | D120: 0 | E120: 0 | F120: 0 | G120: 0 | H120: 0
A121: 67 | C121: 0 | D121: 0 | E121: 0 | F121: 0 | G121: 0 | H121: 0
A122: 68 | C122: 0 | D122: 0 | E122: 0 | F122: 0 | G122: 0 | H122: 0
A123: 69 | C123: 0 | D123: 0 | E123: 0 | F123: 0 | G123: 0 | H123: 0
A124: 70 | C124: 0 | D124: 0 | E124: 0 | F124: 0 | G124: 0 | H124: 0
A125: 71 | C125: 0 | D125: 0 | E125: 0 | F125: 0 | G125: 0 | H125: 0
A126: 72 | C126: =+C93*$L$2 -> 0 | D126: 0 | E126: 0 | F126: 0 | G126: 0 | H126: 0
A127: 73 | C127: 0 | D127: 0 | E127: 0 | F127: 0 | G127: 0 | H127: 0
A128: 74 | C128: 0 | D128: 0 | E128: 0 | F128: 0 | G128: 0 | H128: 0
A129: 75 | B129: o más | C129: 0 | D129: 0 | E129: 0 | F129: 0 | G129: 0 | H129: 0
A130: 1 | B130: Hijo | C130: 0 | D130: 0 | E130: 0 | F130: 0 | G130: 0 | H130: 0
A131: 2 | B131: Hijos | C131: 0 | D131: 0 | E131: 0 | F131: 0 | G131: 0 | H131: 0
A132: 3 | B132: Hijos o más | C132: 0 | D132: 0 | E132: 0 | F132: 0 | G132: 0 | H132: 0
A133: 1 | B133: Rider Comp. Maternidad | C133: 0 | D133: 0 | E133: 0 | F133: 0 | G133: 0 | H133: 0
A134: 1 | B134: Transplante de organos | C134: 0 | D134: 0 | E134: 0 | F134: 0 | G134: 0 | H134: 0
A136: PRIVILEGE
A137: TARIFAS ANUALES
A138: EDAD
D139: CW2 | E139: CW3 | F139: CW4 | G139: CW5 | H139: CW6 | J139: 2 | K139: 3 | L139: 4 | M139: 5 | N139: 6
A140: 18 | B140: - 24 | D140: 13996 | E140: 9622 | F140: 6540 | G140: 4595 | H140: 3494 | J140: TRUE | K140: TRUE | L140: TRUE | M140: TRUE | N140: TRUE
A141: 25 | B141: - 29 | D141: 14683 | E141: 10647 | F141: 7243 | G141: 5091 | H141: 3878 | J141: TRUE | K141: TRUE | L141: TRUE | M141: TRUE | N141: TRUE
A142: 30 | B142: - 34 | D142: 15323 | E142: 11388 | F142: 8128 | G142: 6159 | H142: 4697 | J142: TRUE | K142: TRUE | L142: TRUE | M142: TRUE | N142: TRUE
A143: 35 | B143: - 39 | D143: 17168 | E143: 12749 | F143: 9107 | G143: 6900 | H143: 5271 | J143: TRUE | K143: TRUE | L143: TRUE | M143: TRUE | N143: TRUE
A144: 40 | B144: - 44 | D144: 19873 | E144: 13979 | F144: 10125 | G144: 7605 | H144: 5805 | J144: TRUE | K144: TRUE | L144: TRUE | M144: TRUE | N144: TRUE
A145: 45 | B145: - 49 | D145: 22204 | E145: 15623 | F145: 11325 | G145: 8501 | H145: 6494 | J145: TRUE | K145: TRUE | L145: TRUE | M145: TRUE | N145: TRUE
A146: 50 | B146: - 54 | D146: 29027 | E146: 20606 | F146: 14868 | G146: 12143 | H146: 9280 | J146: TRUE | K146: TRUE | L146: TRUE | M146: TRUE | N146: TRUE
A147: 55 | B147: - 59 | D147: 30889 | E147: 21928 | F147: 15817 | G147: 12921 | H147: 9880 | J147: TRUE | K147: TRUE | L147: TRUE | M147: TRUE | N147: TRUE
A148: 60 | D148: 33640 | E148: 23811 | F148: 18010 | G148: 15373 | H148: 12334 | J148: TRUE | K148: TRUE | L148: TRUE | M148: TRUE | N148: TRUE
A149: 61 | D149: 36137 | E149: 25573 | F149: 19342 | G149: 16509 | H149: 13253 | J149: TRUE | K149: TRUE | L149: TRUE | M149: TRUE | N149: TRUE
A150: 62 | D150: 39554 | E150: 28005 | F150: 21178 | G150: 18079 | H150: 14514 | J150: TRUE | K150: TRUE | L150: TRUE | M150: TRUE | N150: TRUE
A151: 63 | D151: 42060 | E151: 29777 | F151: 22515 | G151: 19226 | H151: 15438 | J151: TRUE | K151: TRUE | L151: TRUE | M151: TRUE | N151: TRUE
A152: 64 | D152: 45498 | E152: 32215 | F152: 24362 | G152: 20792 | H152: 16707 | J152: TRUE | K152: TRUE | L152: TRUE | M152: TRUE | N152: TRUE
A153: 65 | D153: 59477 | E153: 42028 | F153: 30802 | G153: 27729 | H153: 23546 | J153: TRUE | K153: TRUE | L153: TRUE | M153: TRUE | N153: TRUE
A154: 66 | D154: 69094 | E154: 48830 | F154: 35787 | G154: 32233 | H154: 27366 | J154: TRUE | K154: TRUE | L154: TRUE | M154: TRUE | N154: TRUE
A155: 67 | D155: 75466 | E155: 53335 | F155: 39089 | G155: 35203 | H155: 29887 | J155: TRUE | K155: TRUE | L155: TRUE | M155: TRUE | N155: TRUE
A156: 68 | D156: 83558 | E156: 59043 | F156: 43284 | G156: 38980 | H156: 33086 | J156: TRUE | K156: TRUE | L156: TRUE | M156: TRUE | N156: TRUE
A157: 69 | D157: 91934 | E157: 64965 | F157: 47618 | G157: 42887 | H157: 36415 | J157: TRUE | K157: TRUE | L157: TRUE | M157: TRUE | N157: TRUE
A158: 70 | D158: 113139 | E158: 79111 | F158: 56055 | G158: 49968 | H158: 42832 | J158: TRUE | K158: TRUE | L158: TRUE | M158: TRUE | N158: TRUE
A159: 71 | D159: 117580 | E159: 82210 | F159: 58258 | G159: 51935 | H159: 44517 | J159: TRUE | K159: TRUE | L159: TRUE | M159: TRUE | N159: TRUE
A160: 72 | D160: 120915 | E160: 84535 | F160: 59906 | G160: 53408 | H160: 45776 | J160: TRUE | K160: TRUE | L160: TRUE | M160: TRUE | N160: TRUE
A161: 73 | D161: 125346 | E161: 87643 | F161: 62101 | G161: 55366 | H161: 47469 | J161: TRUE | K161: TRUE | L161: TRUE | M161: TRUE | N161: TRUE
A162: 74 | D162: 127582 | E162: 89198 | F162: 63208 | G162: 56347 | H162: 48299 | J162: TRUE | K162: TRUE | L162: TRUE | M162: TRUE | N162: TRUE
A163: 75 | B163: o más | D163: 133123 | E163: 93079 | F163: 65956 | G163: 58797 | H163: 50400 | J163: TRUE | K163: TRUE | L163: TRUE | M163: TRUE | N163: TRUE
A164: 1 | B164: Hijo | D164: 4849 | E164: 3550 | F164: 2663 | G164: 2219 | H164: 1647 | J164: TRUE | K164: TRUE | L164: TRUE | M164: TRUE | N164: TRUE
A165: 2 | B165: Hijos | D165: 7722 | E165: 5647 | F165: 4232 | G165: 3525 | H165: 2616 | J165: TRUE | K165: TRUE | L165: TRUE | M165: TRUE | N165: TRUE
A166: 3 | B166: Hijos o más | D166: 11318 | E166: 8273 | F166: 6198 | G166: 5166 | H166: 3835 | J166: TRUE | K166: TRUE | L166: TRUE | M166: TRUE | N166: TRUE
A167: 1 | B167: Rider Comp. Maternidad | D167: 0 | E167: 0 | F167: 225 | G167: 225 | H167: 225
A168: 1 | B168: Transplante de organos | D168: 0 | E168: 0 | F168: 0 | G168: 0 | H168: 0
A170: TARIFAS SEMESTRALES
A171: EDAD
D172: CW2 | E172: CW3 | F172: CW4 | G172: CW5 | H172: CW6
A173: 18 | B173: - 24 | D173: =$L$2*D140 -> 7417.88 | E173: =$L$2*E140 -> 5099.66 | F173: 3466.2 | G173: 2435.35 | H173: 1851.82
A174: 25 | B174: - 29 | D174: =$L$2*D141 -> 7781.99 | E174: 5642.91 | F174: 3838.79 | G174: 2698.23 | H174: 2055.34
A175: 30 | B175: - 34 | D175: 8121.19 | E175: 6035.64 | F175: 4307.84 | G175: 3264.27 | H175: 2489.41
A176: 35 | B176: - 39 | D176: 9099.04 | E176: 6756.97 | F176: 4826.71 | G176: 3657 | H176: =$L$2*H143 -> 2793.63
A177: 40 | B177: - 44 | D177: 10532.69 | E177: 7408.87 | F177: 5366.25 | G177: 4030.65 | H177: 3076.65
A178: 45 | B178: - 49 | D178: 11768.12 | E178: 8280.19 | F178: 6002.25 | G178: 4505.53 | H178: 3441.82
A179: 50 | B179: - 54 | D179: 15384.31 | E179: 10921.18 | F179: 7880.04 | G179: 6435.79 | H179: 4918.4
A180: 55 | B180: - 59 | D180: 16371.17 | E180: 11621.84 | F180: 8383.01 | G180: 6848.13 | H180: 5236.4
A181: 60 | D181: 17829.2 | E181: 12619.83 | F181: 9545.3 | G181: 8147.69 | H181: 6537.02
A182: 61 | D182: 19152.61 | E182: 13553.69 | F182: 10251.26 | G182: 8749.77 | H182: 7024.09
A183: 62 | D183: 20963.62 | E183: 14842.65 | F183: 11224.34 | G183: 9581.87 | H183: 7692.42
A184: 63 | D184: 22291.8 | E184: 15781.81 | F184: 11932.95 | G184: 10189.78 | H184: 8182.14
A185: 64 | D185: 24113.94 | E185: 17073.95 | F185: 12911.86 | G185: 11019.76 | H185: 8854.71
A186: 65 | D186: 31522.81 | E186: 22274.84 | F186: 16325.06 | G186: 14696.37 | H186: 12479.38
A187: 66 | D187: 36619.82 | E187: 25879.9 | F187: 18967.11 | G187: 17083.49 | H187: 14503.98
A188: 67 | D188: 39996.98 | E188: 28267.55 | F188: 20717.17 | G188: 18657.59 | H188: 15840.11
A189: 68 | D189: 44285.74 | E189: 31292.79 | F189: 22940.52 | G189: 20659.4 | H189: 17535.58
A190: 69 | D190: 48725.02 | E190: 34431.45 | F190: 25237.54 | G190: 22730.11 | H190: 19299.95
A191: 70 | D191: 59963.67 | E191: 41928.83 | F191: 29709.15 | G191: 26483.04 | H191: 22700.96
A192: 71 | D192: 62317.4 | E192: 43571.3 | F192: 30876.74 | G192: 27525.55 | H192: 23594.01
A193: 72 | D193: 64084.95 | E193: 44803.55 | F193: 31750.18 | G193: 28306.24 | H193: 24261.28
A194: 73 | D194: 66433.38 | E194: 46450.79 | F194: 32913.53 | G194: 29343.98 | H194: 25158.57
A195: 74 | D195: 67618.46 | E195: 47274.94 | F195: 33500.24 | G195: 29863.91 | H195: 25598.47
A196: 75 | B196: o más | D196: 70555.19 | E196: 49331.87 | F196: 34956.68 | G196: 31162.41 | H196: 26712
A197: 1 | B197: Hijo | D197: 2569.97 | E197: 1881.5 | F197: 1411.39 | G197: 1176.07 | H197: 872.91
A198: 2 | B198: Hijos | D198: 4092.66 | E198: 2992.91 | F198: 2242.96 | G198: =$L$2*G165 -> 1868.25 | H198: 1386.48
A199: 3 | B199: Hijos o más | D199: 5998.54 | E199: 4384.69 | F199: 3284.94 | G199: 2737.98 | H199: 2032.55
A200: 1 | B200: Rider Comp. Maternidad | D200: =+D167*$L$2 -> 0 | E200: 0 | F200: 119.25 | G200: 119.25 | H200: 119.25
A201: 1 | B201: Transplante de organos | D201: 0 | E201: 0 | F201: 0 | G201: 0 | H201: 0
A203: COMPLETE (LATINAMERICA ONLY)
A204: TARIFAS ANUALES
A205: EDAD
C206: CL1 | D206: CL2 | E206: CL3 | F206: CL4 | G206: CL5 | H206: CL6
A207: 18 | B207: - 24
... 336 more rows
